[Event "CZE-ch U16 Open 2023"]
[Site "Teplice"]
[Date "2023.03.14"]
[Round "5.6"]
[White "Tesar, Jakub"]
[Black "Mametev, Artem"]
[Result "1/2-1/2"]
[ECO "B22"]
[WhiteElo "1960"]
[BlackElo "2074"]
[Annotator "TA"]
[PlyCount "83"]
[EventDate "2023.03.09"]
[EventType "swiss"]
[EventCountry "CZE"]
[SourceTitle "playchess.com"]
[Source "ChessBase"]
[SourceQuality "1"]
[TimeControl "40/5400+30:1800+30"]

{[%evp 10,83,29,22,17,23,32,39,20,8,12,8,10,12,12,6,7,8,12,18,17,8,18,13,14,8,20,4,4,3,14,19,38,43,37,34,50,37,49,13,24,0,8,0,10,0,0,0,0,-29,-28,-59,16,-66,-64,-51,-56,-57,-48,-39,-13,-13,-13,-20,71,34,40,-24,62,56,59,0,0,0,0,0]} 1. e4 {[%emt 0:00:03]} c5 {[%emt 0:00:02]} 2. c3 {[%emt 0:00:07]} d5 {[%emt 0:00:03]} 3. exd5 {[%emt 0:00:07]} Qxd5 {[%emt 0:00:04]} 4. d4 {[%emt 0:00:10]} Nc6 {[%emt 0:00:02]} 5. Nf3 {[%emt 0:00:09]} Bf5 {[%emt 0:00:04]} 6. Be3 {[%emt 0:00:16]} cxd4 {[%emt 0:00:11] B22: Sicilian: 2 c3.} 7. Nxd4 {[%emt 0:00:07]} Nf6 {[%emt 0:00:18]} 8. Nxf5 {[%emt 0:00:25]} Qxf5 {[%emt 0:00:02] White is slightly better.} 9. Bd3 {[%emt 0:00:46]} Qd5 {[%emt 0:00:07] [#] aiming for ...0-0-0.} 10. O-O {[%emt 0:00:10][%cal Od1b3]} O-O-O {[%emt 0:00:06]} 11. Be2 {[%emt 0:00:44] Strongly threatening Qa4. This pair of bishops is nice.} Qxd1 {[%emt 0:00:06]} 12. Rxd1 {[%emt 0:00:04]} Rxd1+ {[%emt 0:00:03]} 13. Bxd1 {[%emt 0:00:07]} Nd5 {[%emt 0:00:12]} 14. Bc1 {[%emt 0:01:14]} e6 {[%emt 0:00:22]} 15. Be2 {[%emt 0:01:28]} Be7 {[%emt 0:02:09]} 16. g3 {[%emt 0:09:24]} Rd8 {[%emt 0:20:07]} 17. Nd2 {[%emt 0:14:52] [#]} f5 $146 {[%emt 0:10:44]} ({Predecessor:} 17... Bg5 18. f4 Be7 19. Nb3 g6 20. Kg2 h5 21. Bd2 Bd6 22. Rd1 Bc7 23. Na1 Bb6 {½-½ Kotainy,J (2413)-Wirig,A (2490) Neckar op-A 17th 2013 (7)}) 18. Nf1 {[%emt 0:16:36]} g5 {[%emt 0:04:19]} 19. Bd2 {[%emt 0:03:29]} e5 {[%emt 0:01:47]} 20. Rd1 {[%emt 0:05:13]} f4 {[%emt 0:12:51]} 21. Bc1 {[%emt 0:05:28]} Nf6 {[%emt 0:03:05]} 22. Rxd8+ {[%emt 0:02:09]} Kxd8 {[%emt 0:01:11]} 23. Nd2 {[%emt 0:06:54]} e4 {[%emt 0:04:26]} 24. Nb3 {[%emt 0:04:49]} Bd6 {[%emt 0:03:44]} 25. Kf1 {[%emt 0:09:28]} h6 {[%emt 0:02:02][%cal Bh7h6,Bh6h5,Bh5h4][%mdl 32]} 26. Bd2 {[%emt 0:04:20]} e3 {[%emt 0:02:37][%mdl 64] [#] Deflection} 27. fxe3 {[%emt 0:01:08]} (27. Be1 {simplifies} exf2 28. Kxf2 fxg3+ 29. hxg3 Ke7 30. Kg2) 27... fxg3 {[%emt 0:00:03]} 28. h3 {[%emt 0:00:32]} h5 {[%emt 0:06:00]} 29. Kg2 {[%emt 0:01:37]} h4 {[%emt 0:04:15]} 30. Bf3 {[%emt 0:01:55]} Kc7 {[%emt 0:00:43]} ({Black should try} 30... Ne5 $15 31. Be2 (31. Bxb7 Kc7 $15) 31... g4) 31. e4 {[%emt 0:02:18]} (31. Nd4 $11) 31... Bf4 $15 {[%emt 0:06:24]} 32. Bxf4+ {[%emt 0:00:12]} gxf4 {[%emt 0:00:01][%mdl 4096] Endgame KBN-KNN} 33. Nc5 $1 {[%emt 0:00:38]} Nd8 {[%emt 0:07:29]} 34. e5 {[%emt 0:00:33]} Nd7 {[%emt 0:00:43]} 35. Nd3 {[%emt 0:00:55]} Ne6 {[%emt 0:00:57]} 36. b4 $1 {[%emt 0:01:22] Repels Ndc5} Kd8 {[%emt 0:02:16]} (36... b5 $11) 37. Bxb7 {[%emt 0:00:30]} (37. Bd5 $5 {[%cal Rd5e6]} Nef8 38. e6 $16 (38. Bxb7 Ng6 $16) (38. Nxf4 b6 $14)) 37... Nb6 $1 {[%emt 0:00:48]} 38. Nb2 {[%emt 0:04:39]} (38. Kh1 $14) 38... Kc7 {[%emt 0:02:23]} (38... f3+ $1 $11 39. Bxf3 (39. Kxf3 Kc7 $17) 39... Nf4+ 40. Kh1 Nxh3) 39. Bf3 $14 {[%emt 0:00:19]} Ng5 {[%emt 0:02:19]} 40. c4 {[%emt 0:04:40]} (40. a4 $1 $14) 40... Nd7 $11 {[%emt 0:00:26]} 41. Nd3 {[%emt 0:30:23] Threatens to win with Bd5.} Nb6 {[%emt 0:31:26]} 42. Nb2 {[%emt 0:00:00] Weighted Error Value: White=0.14 (very precise) /Black=0.14 (very precise)} 1/2-1/2

[Event "CZE-ch U16 Open 2023"]
[Site "Teplice"]
[Date "2023.03.14"]
[Round "5.7"]
[White "Tillmann, Stanislav"]
[Black "Simunek, Jakub Simon"]
[Result "1/2-1/2"]
[ECO "D00"]
[WhiteElo "1907"]
[BlackElo "1970"]
[Annotator "TA"]
[PlyCount "87"]
[EventDate "2023.03.09"]
[EventType "swiss"]
[EventCountry "CZE"]
[SourceTitle "playchess.com"]
[Source "ChessBase"]
[SourceQuality "1"]
[TimeControl "40/5400+30:1800+30"]

{[%evp 9,87,-17,5,-1,33,-19,-22,-18,-4,-17,-12,-23,0,0,0,0,10,-17,-4,-22,7,20,11,16,39,-20,-25,-86,-35,-98,-95,-158,-131,-137,-144,-135,-118,-120,-5,-9,-9,-7,-18,-20,-26,-26,-20,-14,-27,-38,-3,-8,-7,-38,-45,-48,-16,-20,0,0,0,0,0,0,0,0,0,0,0,0,0,0,0,0,0,0,0,0,1,1]} 1. d4 {[%emt 0:00:03]} d5 {[%emt 0:00:15]} 2. Nc3 {[%emt 0:00:05]} c5 {[%emt 0:01:39]} 3. Bf4 {[%emt 0:02:07]} Nf6 {[%emt 0:01:40]} 4. e3 {[%emt 0:00:49]} a6 {[%emt 0:02:31]} 5. Nf3 {[%emt 0:01:13]} Nc6 {[%emt 0:04:17]} 6. Be2 {[%emt 0:03:28] D00: 1 d4 d5: Unusual lines.} Bf5 {[%emt 0:05:43]} 7. a3 {[%emt 0:04:58]} (7. dxc5 $14 e6 8. Na4) 7... e6 $11 {[%emt 0:03:12]} 8. Ne5 {[%emt 0:07:17] [#]} Bd6 $146 {[%emt 0:09:53]} ({Predecessor:} 8... Rc8 9. g4 cxd4 10. exd4 Be4 11. f3 Bg6 12. h4 h6 13. Nxg6 fxg6 14. Qd3 Kf7 {½-½ Jacobsen,H (1873)-Petersen,T (1986) FAI-chT 2021 2020 (10.3)}) 9. g4 {[%emt 0:08:00]} cxd4 {[%emt 0:19:30]} 10. exd4 {[%emt 0:07:02]} Be4 {[%emt 0:07:04]} 11. f3 {[%emt 0:00:52] [#] Nxc6 would be deadly.} Bg6 {[%emt 0:05:58]} 12. h4 {[%emt 0:00:23]} h6 {[%emt 0:02:00]} 13. Nxg6 {[%emt 0:03:09]} fxg6 {[%emt 0:00:05]} 14. Qd2 {[%emt 0:00:27]} Rf8 {[%emt 0:12:01][%cal Of6e4]} (14... Bxf4 $5 15. Qxf4 O-O $11) 15. Bxd6 {[%emt 0:14:48]} Qxd6 {[%emt 0:00:05]} 16. O-O-O {[%emt 0:00:18]} Nd7 {[%emt 0:03:26]} 17. Bd3 {[%emt 0:04:31]} (17. Qd3 $14) 17... O-O-O {[%emt 0:02:48]} 18. Qe3 {[%emt 0:05:41]} (18. Rhf1 $11) 18... Qf4 {[%emt 0:01:31]} ({Better is} 18... e5 $17 19. dxe5 Ndxe5) 19. Rhe1 {[%emt 0:02:58]} ({White should play} 19. Qxf4 $15 Rxf4 20. Ne2 Rxf3 21. Bxg6) 19... Nxd4 $17 {[%emt 0:01:15]} (19... Qxd4 20. Qxe6 Rf6 21. Qxd5 $16) 20. Bxg6 {[%emt 0:01:07]} (20. Bf5 $142 Qxe3+ 21. Rxe3) 20... Nxf3 {[%emt 0:01:44]} 21. Qxf4 {[%emt 0:00:19]} Rxf4 {[%emt 0:00:19]} 22. Rxe6 {[%emt 0:01:02]} Nf8 {[%emt 0:01:24] A dynamic duo of knights.} ({Don't do} 22... Rxg4 23. Bh5 (23. Rxd5 Rg1+ 24. Nd1 Nf6 $15) (23. Nxd5 Nd4 $14) 23... Rf4 24. Nxd5 $18) 23. Rb6 {[%emt 0:07:26]} Nxg6 {[%emt 0:10:23]} ({Stronger than} 23... Nxh4 24. Bd3 $15) (23... Kc7 $17 24. Rxd5 Rd4 25. Rxd8 Rxd8 26. Rxb7+ {[%mdl 64] Decoy} Kxb7 27. Be4+ Ka7 28. Bxf3 Ng6) 24. Rxg6 $11 {[%emt 0:01:06]} d4 {[%emt 0:00:05]} 25. Ne2 {[%emt 0:04:30]} Rf7 {[%emt 0:00:24]} 26. h5 {[%emt 0:02:44]} Ne5 {[%emt 0:01:58]} 27. Re6 {[%emt 0:00:14]} Nxg4 {[%emt 0:00:21]} 28. Rxd4 {[%emt 0:02:32]} Rf1+ {[%emt 0:02:06]} 29. Kd2 {[%emt 0:00:02]} Rxd4+ {[%emt 0:00:14]} 30. Nxd4 $15 {[%emt 0:00:07][%mdl 4096] Endgame KRN-KRN} Nf6 {[%emt 0:00:09]} 31. Re7 {[%emt 0:03:12]} Nxh5 {[%emt 0:00:32]} 32. Ne6 {[%emt 0:00:21]} g5 {[%emt 0:00:37] aiming for ...g4.} 33. Rh7 {[%emt 0:01:18] The position is equal.} Rf6 {[%emt 0:00:10]} (33... g4 $5 {[%cal Rg4g3]} 34. Rh8+ Kd7 35. Nc5+ Kd6 36. Rxh6+ (36. Nxb7+ Kd5 $17) 36... Kxc5 37. Rxh5+ Kd4 $15) 34. Nxg5 {[%emt 0:01:21]} hxg5 {[%emt 0:01:29]} 35. Rxh5 $11 {[%emt 0:00:08] KR-KR} Rf2+ {[%emt 0:00:23]} 36. Kd3 {[%emt 0:00:29]} Rg2 {[%emt 0:00:16]} 37. Rh7 {[%emt 0:00:33]} Kb8 {[%emt 0:00:45]} 38. Rg7 {[%emt 0:00:35]} Kc8 {[%emt 0:00:07]} 39. a4 {[%emt 0:00:48]} Rg4 {[%emt 0:00:55]} 40. a5 {[%emt 0:03:38]} Rb4 {[%emt 0:00:35]} 41. Kc3 {[%emt 0:31:03]} Rb5 {[%emt 0:30:07]} 42. b4 {[%emt 0:00:31]} Kb8 {[%emt 0:00:00]} 43. Kb3 {[%emt 0:00:00]} Rf5 {[%emt 0:00:00]} 44. c3 {[%emt 0:00:00] Weighted Error Value: White=0.18 (very precise) /Black=0.16 (very precise)} 1/2-1/2

[Event "CZE-ch U16 Open 2023"]
[Site "Teplice"]
[Date "2023.03.14"]
[Round "5.8"]
[White "Davidek, Zdenek"]
[Black "Svoboda, Daniel"]
[Result "1/2-1/2"]
[ECO "D27"]
[WhiteElo "1957"]
[BlackElo "1748"]
[Annotator "TA"]
[PlyCount "96"]
[EventDate "2023.03.09"]
[EventType "swiss"]
[EventCountry "CZE"]
[SourceTitle "playchess.com"]
[Source "ChessBase"]
[SourceQuality "1"]
[TimeControl "40/5400+30:1800+30"]

{[%evp 22,96,12,0,0,0,0,0,0,-54,-63,-79,-31,-63,-11,-52,-45,-50,0,0,0,0,0,0,0,-17,-8,-14,9,8,0,0,0,-38,66,69,55,68,64,22,31,32,43,9,86,0,36,8,55,66,70,16,32,0,0,-16,31,10,12,-10,54,24,38,38,50,0,42,0,0,0,0,-69,-69,-100,-38,-86,-84]} 1. d4 {[%emt 0:00:03]} d5 {[%emt 0:00:11]} 2. Nf3 {[%emt 0:00:06]} Nf6 {[%emt 0:00:07]} 3. c4 {[%emt 0:00:06]} dxc4 {[%emt 0:00:17]} 4. e3 {[%emt 0:00:18]} e6 {[%emt 0:00:35]} 5. Bxc4 {[%emt 0:00:06]} c5 {[%emt 0:00:18]} 6. O-O {[%emt 0:00:28]} a6 {[%emt 0:00:33]} 7. a4 {[%emt 0:00:16]} cxd4 {[%emt 0:01:08]} 8. exd4 {[%emt 0:00:59]} Nc6 {[%emt 0:01:14]} 9. Nc3 {[%emt 0:00:26]} Be7 {[%emt 0:01:13]} 10. Re1 {[%emt 0:15:57]} O-O {[%emt 0:03:14]} 11. Bg5 {[%emt 0:09:55] 11.Bf4 is the modern continuation.} h6 {[%emt 0:00:36]} 12. Bh4 {[%emt 0:01:19]} Bd7 {[%emt 0:02:14] D27: Queen's Gambit Accepted: Classical main line: 7 e4!? and 7 a4.} 13. Qe2 {[%emt 0:03:56]} Nd5 {[%emt 0:06:05]} 14. Bxe7 {[%emt 0:00:52]} Ncxe7 {[%emt 0:01:38] [#] The position is equal.} 15. Ne4 $146 {[%emt 0:08:21]} (15. Nxd5 $11 Nxd5 16. Ne5) ({Predecessor:} 15. Nxd5 Nxd5 16. Bxd5 exd5 17. Qd3 Re8 18. Rxe8+ Bxe8 19. b3 Rc8 20. h3 b5 21. axb5 Bxb5 {0-1 Berner,R-Fischer,K Liga 2019 21539-K3-G3}) 15... Bc6 $15 {[%emt 0:08:21]} 16. Ne5 {[%emt 0:01:18]} Rc8 {[%emt 0:09:39]} ({Black should play} 16... Nb6 $17) 17. a5 {[%emt 0:16:38]} Nf5 {[%emt 0:14:25]} 18. Red1 {[%emt 0:04:09]} (18. Qg4 {keeps more tension.} Nxd4 19. Rad1 Nc2 20. Nxf7 Rxf7 21. Qxe6 Nxe1 22. Nd6) 18... Nf4 {[%emt 0:11:49][%csl LRd4,LRe2]} 19. Qg4 {[%emt 0:10:15]} Qh4 {[%emt 0:10:09]} (19... Bd5 $15 20. Qxf4 Bxc4) 20. Qxh4 $11 {[%emt 0:01:06]} Nxh4 {[%emt 0:00:12]} 21. Nxc6 {[%emt 0:00:02]} Rxc6 {[%emt 0:01:04]} 22. Bf1 {[%emt 0:00:23]} Nf5 {[%emt 0:02:30][%cal Bh4f5,Bf5d4,Bd4f3][%mdl 32]} 23. Ra3 {[%emt 0:02:47]} Rd8 {[%emt 0:03:04]} 24. g3 {[%emt 0:00:36]} Nxd4 {[%emt 0:09:07] ...Nde2+ is the strong threat.} 25. gxf4 {[%emt 0:01:02]} Nf3+ $1 {[%emt 0:00:22][%mdl 64] [#] Discovered Attack} 26. Rxf3 {[%emt 0:00:02]} Rxd1 {[%emt 0:00:06]} 27. Kg2 {[%emt 0:00:30]} Rb1 {[%emt 0:04:14]} (27... Rd4 $15 28. Rd3 Rxd3 29. Bxd3 f5) 28. Rb3 $14 {[%emt 0:00:56]} Ra1 $1 {[%emt 0:01:25]} 29. Rxb7 {[%emt 0:00:56] [#] Strongly threatening b4.} Rxa5 {[%emt 0:00:02]} 30. Bd3 {[%emt 0:00:26] Threatening mate with Rb8+.} f5 $1 {[%emt 0:01:04]} 31. Nc3 {[%emt 0:09:10]} Rac5 {[%emt 0:01:54]} 32. Ra7 {[%emt 0:01:01]} Ra5 {[%emt 0:01:53]} (32... Rd6 $11 {remains equal.} 33. Bf1 (33. Bxa6 Ra5 $15) 33... Rcc6) 33. Rb7 {[%emt 0:01:58]} (33. h4 $16) 33... Rac5 $1 {[%emt 0:00:06]} 34. Kf1 {[%emt 0:02:55]} Kh7 {[%emt 0:02:37]} (34... Rd6 $11 35. Ke2 g5) 35. Ke2 {[%emt 0:01:26]} Kg6 {[%emt 0:00:28]} 36. Rb4 {[%emt 0:01:57] White is much more active.} (36. Na4 $14 Rc1 37. b4) 36... Rd6 {[%emt 0:02:21]} 37. Rb7 {[%emt 0:04:57]} Kf6 {[%emt 0:00:39]} 38. Rb4 {[%emt 0:00:46][%cal Bb7b4,Bb4a4,Ba4a2,Ba2a6][%mdl 32]} Kf7 {[%emt 0:01:32]} (38... a5 $11 {feels stronger.} 39. Ra4 Rb6) 39. Ra4 {[%emt 0:00:13]} Rb6 {[%emt 0:00:40]} 40. Ra2 {[%emt 0:00:01] aiming for Na4.} Rd6 {[%emt 0:00:45]} (40... Rb4 $11) 41. Bxa6 {[%emt 0:06:12]} Rd4 {[%emt 0:00:54]} 42. Ke3 {[%emt 0:01:01]} Rb4 {[%emt 0:01:26]} 43. Bd3 {[%emt 0:00:21]} (43. h4 $14) 43... Kf6 {[%emt 0:04:31]} 44. Ra6 {[%emt 0:03:36]} g5 {[%emt 0:01:22]} 45. fxg5+ {[%emt 0:02:10]} hxg5 {[%emt 0:00:51]} 46. Ra1 {[%emt 0:00:39]} (46. Nd1 $11) 46... Rxb2 $15 {[%emt 0:04:43]} 47. Ra3 {[%emt 0:02:03]} Rc7 {[%emt 0:05:14]} (47... g4 $17 {Hoping for ...Re5+.} 48. Be2 Rc8) 48. Kf3 {[%emt 0:01:14]} (48. Ne2 $15 {might be stronger.}) 48... Rh7 {[%emt 0:02:48] Weighted Error Value: White=0.24 (precise) /Black=0.20 (precise)} 1/2-1/2

[Event "CZE-ch U16 Open 2023"]
[Site "Teplice"]
[Date "2023.03.14"]
[Round "5.9"]
[White "Vilimek, Vit"]
[Black "Hozda, Max"]
[Result "1-0"]
[ECO "B01"]
[WhiteElo "2018"]
[BlackElo "2067"]
[Annotator "TA"]
[PlyCount "43"]
[EventDate "2023.03.09"]
[EventType "swiss"]
[EventCountry "CZE"]
[SourceTitle "playchess.com"]
[Source "ChessBase"]
[SourceQuality "1"]
[TimeControl "40/5400+30:1800+30"]

{[%evp 16,43,19,-52,-46,-37,-67,-94,-100,-120,-118,-142,-118,-178,0,0,0,0,0,0,0,0,-6,-39,-5,-27,1789,1759,1783,1453]} 1. e4 {[%emt 0:00:03]} d5 {[%emt 0:00:57]} 2. exd5 {[%emt 0:00:02]} Qxd5 {[%emt 0:00:06]} 3. Nc3 {[%emt 0:00:01]} Qa5 {[%emt 0:00:12]} 4. d4 {[%emt 0:00:01]} Nf6 {[%emt 0:00:14]} 5. Bc4 {[%emt 0:00:09]} c6 {[%emt 0:00:21]} 6. Nf3 {[%emt 0:00:06]} Bf5 {[%emt 0:00:31]} 7. O-O {[%emt 0:00:07]} Nbd7 {[%emt 0:02:59]} 8. Re1 {[%emt 0:00:23]} e6 {[%emt 0:06:28]} 9. Ne5 {[%emt 0:08:43]} (9. a3 $1 $11) 9... Nxe5 $15 {[%emt 0:19:05] B01: Scandinavian Defence.} 10. Rxe5 {[%emt 0:05:34]} Qb4 {[%emt 0:01:34]} 11. Qe2 {[%emt 0:17:21] [#]} O-O-O $1 {[%emt 0:01:23] Black is better.} 12. a3 {[%emt 0:10:25]} Qb6 {[%emt 0:01:07] [#]} 13. Be3 $146 {[%emt 0:05:23][%cal Od4d5]} ({Predecessor:} 13. Rxf5 exf5 14. Bxf7 Bd6 15. Qc4 Rhf8 16. Be6+ Kb8 17. Bxf5 Qa5 18. Qd3 g6 19. Bh3 {½-½ Stefansson,H (2470)-Westerinen,H (2420) Gausdal Int 1991 (9)}) 13... Ng4 {[%emt 0:27:50]} 14. b4 {[%emt 0:15:06]} (14. Na4 $2 Qc7 15. Bf4 Nxe5 16. Bxe5 Bd6 $19) (14. Rxf5 $17 exf5 15. Rb1) 14... Rxd4 $2 {[%emt 0:21:10]} (14... Qc7 $19 {...f6 would be deadly.} 15. Bf4 Nxe5) 15. Bxd4 $11 {[%emt 0:11:11]} Qxd4 {[%emt 0:00:08]} 16. Rxf5 {[%emt 0:02:12]} exf5 {[%emt 0:02:29]} (16... Qxc3 $2 17. Rd1 (17. Rxf7 $2 Qxa1+ 18. Qf1 Qe5 $19) 17... Bxb4 18. Rxf7 $18) 17. Qe8+ {[%emt 0:10:15]} Kc7 {[%emt 0:00:29]} 18. Qxf7+ {[%emt 0:01:27]} (18. Bxf7 Qxf2+ 19. Kh1 Qf4) 18... Qd7 {[%emt 0:02:10]} ({Resist} 18... Kb8 19. Qe8+ (19. Qxf5 $2 {perishes.} Bd6 $19) 19... Kc7 20. Rd1 Qxf2+ 21. Kh1 $14) 19. Re1 {[%emt 0:08:23][%cal Ba1e1,Be1e8,Be8e7][%mdl 32]} g6 {[%emt 0:01:59]} 20. Re8 {[%emt 0:02:46]} Bg7 {[%emt 0:00:10][%mdl 8192] [#] Black is weak on the light squares} (20... Qxf7 $11 21. Bxf7 Bg7 22. Rxh8 Bxh8) 21. Re7 $18 {[%emt 0:00:06]} Rd8 {[%emt 0:01:30]} 22. Qxg7 {[%emt 0:00:17] What a bad dream for Black.   Weighted Error Value: White=0.25 (precise) /Black=0.32} ({Weaker is} 22. Rxd7+ Rxd7 23. Qe6 Bxc3 $16) 1-0

[Event "CZE-ch U16 Open 2023"]
[Site "Teplice"]
[Date "2023.03.14"]
[Round "5.10"]
[White "Pelc, Adam"]
[Black "Mohapl, Tomas"]
[Result "1-0"]
[ECO "B24"]
[WhiteElo "1871"]
[BlackElo "1946"]
[Annotator "TA"]
[PlyCount "67"]
[EventDate "2023.03.09"]
[EventType "swiss"]
[EventCountry "CZE"]
[SourceTitle "playchess.com"]
[Source "ChessBase"]
[SourceQuality "1"]
[TimeControl "40/5400+30:1800+30"]

{[%evp 17,66,0,4,-8,0,-7,-13,-10,18,8,14,15,0,0,26,0,78,67,227,204,216,197,189,170,174,185,177,169,183,185,302,295,460,322,1966,1870,1881,1864,1762,1702,29984,29985,29985,29986,29985,29986,29986,1002,29990,29991,29994]} 1. e4 {[%emt 0:00:13]} c5 {[%emt 0:00:05]} 2. Nc3 {[%emt 0:00:31]} Nc6 {[%emt 0:00:27]} 3. g3 {[%emt 0:00:54]} g6 {[%emt 0:02:25]} 4. Bg2 {[%emt 0:01:24]} Bg7 {[%emt 0:00:45]} 5. Nge2 {[%emt 0:04:02]} Nf6 {[%emt 0:03:36]} 6. d3 {[%emt 0:02:34]} d6 {[%emt 0:01:17]} 7. O-O {[%emt 0:00:51]} O-O {[%emt 0:00:40]} 8. h3 {[%emt 0:04:14]} Rb8 {[%emt 0:03:25] 8...Rb8 is better than 8...Bd7.} 9. f4 {[%emt 0:01:34]} Bd7 {[%emt 0:12:18] [#]} 10. Qe1 $146 {[%emt 0:11:15] B25: Closed Sicilian: 3 g3, lines without early Be3.} ({Predecessor:} 10. Be3 b5 11. a3 a5 12. a4 b4 13. Nb5 Ne8 14. Rb1 Nc7 15. c4 Nxb5 16. axb5 Nd4 17. Nxd4 cxd4 18. Bd2 e5 19. f5 {0-1 Demchenko,A (2679)-Jones,G (2682) Wch Blitz St Petersburg 2018 (13)}) 10... b5 {[%emt 0:08:00]} 11. Nd1 {[%emt 0:01:26][%cal Bc3d1,Bd1e3,Be3g4,Bg4h6,Bh6f7,Bf7g5][%mdl 32]} Ne8 {[%emt 0:13:30]} 12. Ne3 {[%emt 0:04:13] The position is equal.} Nd4 {[%emt 0:10:08]} 13. c3 {[%emt 0:04:39]} Nxe2+ {[%emt 0:00:58]} 14. Qxe2 {[%emt 0:00:05]} b4 {[%emt 0:01:02]} 15. Bd2 {[%emt 0:06:08]} e6 {[%emt 0:11:03]} 16. f5 {[%emt 0:21:45]} Bb5 {[%emt 0:02:38]} (16... bxc3 $11 {remains equal.} 17. Bxc3 Bxc3 18. bxc3 Qg5) 17. Ng4 {[%emt 0:07:26]} (17. fxe6 {simplifies} fxe6 18. Rxf8+ Bxf8 19. Ng4) 17... h5 $2 {[%emt 0:02:20] Loses the game.} (17... exf5 $14 18. exf5 Kh8) 18. Nh6+ $18 {[%emt 0:00:49]} Kh7 {[%emt 0:01:49]} 19. fxg6+ {[%emt 0:00:11]} fxg6 {[%emt 0:00:16]} 20. Nf7 {[%emt 0:01:14]} Qe7 {[%emt 0:01:35]} 21. Ng5+ {[%emt 0:01:16]} Kg8 {[%emt 0:00:25]} 22. Rxf8+ {[%emt 0:00:45]} ({Much less strong is} 22. cxb4 $6 Nc7 $16) 22... Bxf8 {[%emt 0:00:42]} 23. Rf1 {[%emt 0:00:37] aiming for Rf7.} (23. cxb4 cxb4 24. Rf1 Nf6 $16) 23... Bd7 {[%emt 0:06:46]} (23... bxc3 $142 24. bxc3 Ng7) 24. e5 {[%emt 0:02:28][%cal Be4e5,Be5f6,Bf6f7][%mdl 32] Hoping for Be4.} ({But not} 24. Rf7 Qxf7 25. Nxf7 bxc3 26. Bxc3 Kxf7) 24... d5 {[%emt 0:02:58] Inhibits Be4.} (24... bxc3 $142 25. bxc3 dxe5) 25. Rf7 {[%emt 0:00:41]} Qd8 $2 {[%emt 0:00:01] [#]} (25... Qxf7 26. Nxf7 bxc3 27. bxc3 Rb1+ 28. Kh2 Kxf7) 26. Rxf8+ $1 {[%emt 0:00:17][%mdl 512]} Kxf8 {[%emt 0:00:24]} 27. Qf2+ {[%emt 0:00:48]} Nf6 {[%emt 0:00:06]} 28. exf6 {[%emt 0:00:03] Intending Bf4 and mate.} bxc3 {[%emt 0:01:29] Black is weak on the dark squares} 29. Qxc5+ {[%emt 0:01:17]} Kg8 {[%emt 0:00:40]} 30. f7+ {[%emt 0:05:06]} Kg7 {[%emt 0:00:01]} 31. Bxc3+ {[%emt 0:00:11]} Kh6 {[%emt 0:00:01] [#]} 32. Qe3 {[%emt 0:00:17]} Qb6 {[%emt 0:01:36]} 33. Bd4 {[%emt 0:00:09][%mdl 64] Skewer} (33. Nxe6+ $2 {too greedy.} Qxe3+ 34. Kh2 Qxe6 $19) 33... Qd6 {[%emt 0:00:57]} 34. Ne4+ {[%emt 0:00:15] Artfully played by Pelc.   Weighted Error Value: White=0.11 (very precise) /Black=0.89} 1-0